[Event "FIDE Candidates Tournament 2022"]
[Site "Madrid"]
[Date "2022.06.21"]
[Round "4.1"]
[White "Rapport, Richard"]
[Black "Nakamura, Hikaru"]
[Result "1/2-1/2"]
[ECO "C65"]
[WhiteElo "2776"]
[BlackElo "2760"]
[Annotator "TA"]
[PlyCount "88"]
[EventDate "2022.06.17"]
[EventType "tourn"]
[EventCountry "ESP"]
[SourceTitle "playchess.com"]
[Source "ChessBase"]
[SourceQuality "1"]
[TimeControl "40/7200:20/3600:900+30"]

{[%evp 9,88,14,18,16,32,14,21,21,10,11,18,0,0,0,0,0,0,0,0,0,0,0,0,0,0,0,0,0,0,0,0,0,0,0,0,0,0,0,0,0,0,0,0,-10,-13,-9,0,0,0,0,0,0,0,0,9,8,8,17,20,0,0,0,0,0,0,-8,-8,-8,0,0,0,0,0,-8,0,0,8,0,8,0,0]} 1. e4 {[%emt 0:00:49]} e5 {[%emt 0:00:07]} 2. Nf3 {[%emt 0:00:16]} Nc6 {[%emt 0:00:06]} 3. Bb5 {[%emt 0:00:26]} Nf6 {[%emt 0:00:05]} 4. d3 {[%emt 0:00:10]} Bc5 {[%emt 0:00:05]} 5. Bxc6 {[%emt 0:00:16]} dxc6 {[%emt 0:00:09]} 6. O-O {[%emt 0:00:07] C65: Ruy Lopez: Berlin Defence (3...Nf6), unusual lines and 4 0-0 Bc5.} Bd6 {[%emt 0:00:08]} 7. Bg5 {[%emt 0:00:51]} h6 {[%emt 0:00:42] The position is equal.} 8. Bh4 {[%emt 0:00:14]} g5 {[%emt 0:00:23]} 9. Bg3 {[%emt 0:00:09] [#]} Be6 $146 {[%emt 0:00:07]} ({Predecessor:} 9... Qe7 10. d4 Nd7 11. Nbd2 f6 12. Nc4 h5 13. h4 g4 14. dxe5 fxe5 15. Ng5 Nb6 16. Nxd6+ cxd6 {0-1 (40) Caruana,F (2791)-So,W (2772) Chess.com INT 2021}) 10. Qd2 {[%emt 0:09:19]} Nd7 {[%emt 0:00:35]} 11. d4 {[%emt 0:03:03][%cal Rd4e5]} f6 {[%emt 0:03:38]} 12. Qc3 {[%emt 0:06:30][%cal Rd4e5]} exd4 {[%emt 0:00:22]} 13. Nxd4 {[%emt 0:01:06]} Qe7 {[%emt 0:00:03]} 14. Bxd6 {[%emt 0:01:21]} Qxd6 {[%emt 0:00:33]} 15. Nxe6 {[%emt 0:00:48]} Qxe6 {[%emt 0:01:02]} 16. Qb3 {[%emt 0:00:06]} Nc5 {[%emt 0:01:30]} 17. Qxe6+ {[%emt 0:00:06]} Nxe6 {[%emt 0:00:03]} 18. Rd1 {[%emt 0:05:06]} Ke7 {[%emt 0:01:05]} 19. Nd2 {[%emt 0:03:14]} h5 {[%emt 0:01:28]} 20. Nc4 {[%emt 0:09:19]} g4 {[%emt 0:02:03]} 21. Rd2 {[%emt 0:06:30]} Rad8 {[%emt 0:05:00]} 22. Rad1 {[%emt 0:00:41]} Rxd2 {[%emt 0:04:52]} 23. Rxd2 $11 {[%emt 0:00:25][%mdl 4096] Endgame KRN-KRN} Ng5 {[%emt 0:08:25]} 24. Na5 {[%emt 0:10:46]} h4 {[%emt 0:06:49]} (24... Nxe4 $2 25. Re2 $18) 25. Rd3 {[%emt 0:04:57]} c5 {[%emt 0:11:39]} (25... Nxe4 $2 26. Re3 $18) 26. h3 {[%emt 0:04:28]} gxh3 {[%emt 0:00:31]} 27. gxh3 {[%emt 0:00:30]} b6 {[%emt 0:00:31]} ({Resist} 27... Nxe4 28. Re3 f5 29. f3 $16) 28. Nc6+ {[%emt 0:03:58]} Ke6 {[%emt 0:00:19]} 29. Nxa7 {[%emt 0:03:29]} Ra8 {[%emt 0:05:59]} 30. Nb5 {[%emt 0:01:33]} Rxa2 {[%emt 0:00:22]} 31. Nxc7+ {[%emt 0:00:47]} Ke5 {[%emt 0:01:08]} 32. Nd5 {[%emt 0:01:52] [#] And now f4+ would win.} Ra1+ {[%emt 0:20:04]} 33. Kg2 {[%emt 0:01:51] aiming for f4+.} Ne6 {[%emt 0:00:07] Against f4+} 34. c4 {[%emt 0:14:12]} Re1 {[%emt 0:05:24]} 35. Re3 {[%emt 0:05:13]} Rxe3 {[%emt 0:01:44]} 36. fxe3 {[%emt 0:00:04] Hoping for Kf3.} Kxe4 {[%emt 0:00:04]} 37. Nxf6+ {[%emt 0:00:34]} Kxe3 {[%emt 0:00:04] KN-KN} 38. Nd5+ {[%emt 0:00:05]} Kd3 {[%emt 0:00:05]} 39. Kf3 {[%emt 0:00:51]} Kxc4 {[%emt 0:00:28]} 40. Nxb6+ {[%emt 0:00:00]} Kb3 {[%emt 0:00:00]} 41. Nd7 {[%emt 0:00:19]} Ng5+ {[%emt 0:00:10]} 42. Kg4 {[%emt 0:00:04]} Nxh3 {[%emt 0:00:04]} 43. Nxc5+ {[%emt 0:00:04]} Kxb2 {[%emt 0:00:03]} 44. Kxh4 {[%emt 0:00:09]} Nf4 {[%emt 0:00:01] An even fight not without its subleties.  Weighted Error Value: White=0.03 (flawless) /Black=0.02 (flawless)} 1/2-1/2

[Event "FIDE Candidates Tournament 2022"]
[Site "Madrid"]
[Date "2022.06.25"]
[Round "7.1"]
[White "Rapport, Richard"]
[Black "Nepomniachtchi, Ian"]
[Result "0-1"]
[ECO "C42"]
[WhiteElo "2776"]
[BlackElo "2773"]
[Annotator "TA"]
[PlyCount "86"]
[EventDate "2022.06.17"]
[EventType "tourn"]
[EventCountry "ESP"]
[SourceTitle "playchess.com"]
[Source "ChessBase"]
[SourceQuality "1"]
[TimeControl "40/7200:20/3600:900+30"]

{[%evp 15,86,28,30,0,0,0,6,0,0,0,5,0,0,0,0,0,0,0,0,0,0,0,0,0,0,0,0,0,0,0,0,0,0,0,-27,-35,-21,-33,-37,-97,-79,-135,-71,-102,-79,-77,-97,-149,-134,-113,-82,-308,-308,-308,-308,-308,-308,-292,-300,-282,-275,-401,-406,-382,-382,-1293,-1237,-1176,-1170,-1061,-995,-5289,-2322]} 1. e4 {[%emt 0:00:03]} e5 {[%emt 0:00:09]} 2. Nf3 {[%emt 0:00:09]} Nf6 {[%emt 0:00:05]} 3. Nxe5 {[%emt 0:01:24]} d6 {[%emt 0:00:09]} 4. Nf3 {[%emt 0:00:11]} Nxe4 {[%emt 0:00:06]} 5. d4 {[%emt 0:00:09]} d5 {[%emt 0:00:05]} 6. Bd3 {[%emt 0:00:06]} Bd6 {[%emt 0:00:04]} 7. O-O {[%emt 0:01:20]} O-O {[%emt 0:00:30]} 8. c4 {[%emt 0:00:29]} c6 {[%emt 0:00:07]} 9. Qb3 {[%emt 0:00:33] C42: Petroff Defence: 3 Nxe5 and unusual White 3rd moves.} Bg4 {[%emt 0:01:16] aiming for ...Bxf3.} 10. Bxe4 {[%emt 0:00:21]} (10. Qxb7 Bxf3 11. gxf3 {[#]} Qh4 $1 $19) 10... dxe4 {[%emt 0:00:14]} 11. Ng5 {[%emt 0:00:05] The position is equal.} Be7 {[%emt 0:02:14] This bishop pair is nice.} 12. Nxe4 {[%emt 0:00:32]} ({But not} 12. Qxb7 $6 Na6 $16) 12... Qxd4 {[%emt 0:01:07]} 13. Qxb7 {[%emt 0:02:19]} Qxe4 {[%emt 0:00:28]} 14. Qxa8 {[%emt 0:00:21] [#]} Bh3 $146 {[%emt 0:00:39]} ({Predecessor:} 14... Bd6 15. Qxa7 Bh3 16. gxh3 Qe5 17. Rd1 Qxh2+ 18. Kf1 Qxh3+ 19. Ke1 Bb4+ 20. Nc3 Bxc3+ 21. bxc3 Qxc3+ 22. Bd2 Re8+ 23. Kf1 Qh3+ 24. Kg1 Qg4+ 25. Kh1 {½-½ (25) Duhrssen,R-Batik,F corr 1928}) 15. gxh3 {[%emt 0:02:10]} Qg6+ {[%emt 0:00:14]} 16. Kh1 {[%emt 0:01:33]} Qe4+ {[%emt 0:00:19]} 17. Kg1 {[%emt 0:20:45]} Qg6+ {[%emt 0:00:07]} 18. Kh1 {[%emt 0:00:01]} Qe4+ {[%emt 0:00:07]} 19. f3 {[%emt 0:28:05]} Qd3 {[%emt 0:00:44][%cal Rd3f1] [#]} 20. Kg2 {[%emt 0:07:26]} Qg6+ $1 {[%emt 0:00:23]} 21. Kh1 {[%emt 0:00:04]} Qd3 {[%emt 0:00:06][%csl LRc4,LRf1][%cal Rd3f1]} 22. Nd2 {[%emt 0:02:54]} Qd7 $40 {[%emt 0:00:25][%mdl 128] White needs to defend precisely.} 23. Ne4 {[%emt 0:01:15]} (23. Re1 $5 {[%cal Re1e7]} Bd6 24. Ne4 $11) 23... Na6 {[%emt 0:01:37]} 24. Qxf8+ {[%emt 0:00:07]} Bxf8 {[%emt 0:06:44]} 25. Bf4 {[%emt 0:02:46]} Qxh3 {[%emt 0:04:05]} 26. Rad1 {[%emt 0:03:40]} h6 {[%emt 0:00:34][%cal Bh7h6,Bh6h5,Bh5h4][%mdl 1056] Black has compensation.} 27. Bg3 {[%emt 0:02:46]} (27. a3 $15) 27... Nc5 $17 {[%emt 0:04:23]} 28. Rfe1 {[%emt 0:03:37]} ({Better is} 28. Nxc5 Bxc5 29. Rde1) 28... Ne6 {[%emt 0:01:36]} (28... Nxe4 $142 29. Rxe4 g5) 29. a3 {[%emt 0:01:42]} h5 {[%emt 0:02:53] Strongly threatening ...h4.} 30. Rd3 {[%emt 0:02:11]} Qf5 {[%emt 0:07:13]} 31. b4 {[%emt 0:03:44]} (31. Rc3 $142) 31... h4 {[%emt 0:01:12]} 32. Bb8 {[%emt 0:06:51]} Ng5 {[%emt 0:04:52]} 33. Rde3 $2 {[%emt 0:00:53] This costs White the game.} (33. Ree3 $17) 33... Nxe4 $19 {[%emt 0:08:08]} ({Weaker is} 33... Nxf3 34. Rf1 Qc8 35. Rexf3 $14) 34. fxe4 {[%emt 0:00:08]} Qf2 {[%emt 0:00:06][%cal Oh4h3] Threatens to win with ...h3!} 35. h3 {[%emt 0:06:06]} Be7 {[%emt 0:00:50]} 36. Bh2 {[%emt 0:06:13]} Bg5 {[%emt 0:00:23]} 37. Bg1 {[%emt 0:00:04]} Qd2 {[%emt 0:01:09]} 38. R3e2 {[%emt 0:02:31]} (38. R1e2 $142 Qd4 39. Rf3 Qxc4 40. Re1) 38... Qd3 {[%emt 0:01:02][%csl LRa3,LRc4,LRh3]} 39. Be3 {[%emt 0:00:48]} Bf6 {[%emt 0:00:33] Hoping for ...Bc3.} 40. Bxa7 $2 {[%emt 0:00:00]} (40. Kg2 Bc3 41. Bf2 Bxe1 42. Re3 Qxc4 43. Bxe1) 40... Qxh3+ {[%emt 0:00:00] Black is clearly winning.} 41. Kg1 {[%emt 0:03:07]} Qg3+ {[%emt 0:00:48]} 42. Kf1 {[%emt 0:02:22]} h3 {[%emt 0:00:33] And now ...Bc3 would win.} 43. Bg1 {[%emt 0:01:56]} Bh4 {[%emt 0:01:15] Weighted Error Value: White=0.61/Black=0.04 (flawless)} 0-1

[Event "FIDE Candidates Tournament 2022"]
[Site "Madrid"]
[Date "2022.07.01"]
[Round "12.1"]
[White "Rapport, Richard"]
[Black "Caruana, Fabiano"]
[Result "1/2-1/2"]
[ECO "C65"]
[WhiteElo "2776"]
[BlackElo "2786"]
[Annotator "TA"]
[PlyCount "104"]
[EventDate "2022.06.17"]
[EventType "tourn"]
[EventCountry "ESP"]
[SourceTitle "playchess.com"]
[Source "ChessBase"]
[SourceQuality "1"]
[TimeControl "40/7200:20/3600:900+30"]

{[%evp 9,104,14,22,11,31,0,0,0,0,0,0,0,0,0,0,0,0,0,0,0,0,0,0,0,0,0,0,0,14,0,35,45,47,52,70,0,0,0,3,12,8,0,12,0,34,39,42,0,0,0,0,-12,-12,-12,-12,-12,-12,-12,-12,-12,-13,-12,-13,-44,-50,-94,-94,-131,-131,-131,-131,-118,-120,-137,-103,-104,-93,-147,-137,-221,-73,-73,-73,-73,-73,-73,-48,-48,-14,-14,-14,-15,0,0,0,0,0]} 1. e4 {[%emt 0:00:48]} e5 {[%emt 0:00:04]} 2. Nf3 {[%emt 0:00:09]} Nc6 {[%emt 0:00:04]} 3. Bb5 {[%emt 0:00:16]} Nf6 {[%emt 0:00:06][%cal Bg8f6,Bf6d7,Bd7c5][%mdl 32]} 4. d3 {[%emt 0:00:58]} Bc5 {[%emt 0:00:06]} 5. Bxc6 {[%emt 0:00:13]} dxc6 {[%emt 0:00:06]} 6. h3 {[%emt 0:00:39] C65: Ruy Lopez: Berlin Defence (3...Nf6), unusual lines and 4 0-0 Bc5.} Be6 {[%emt 0:08:32]} 7. Nbd2 {[%emt 0:00:45]} Nd7 {[%emt 0:03:27]} 8. Nb3 {[%emt 0:00:38]} Bb6 {[%emt 0:06:40]} 9. Ng5 {[%emt 0:00:31] [#]} Bxb3 $146 {[%emt 0:00:24]} ({Predecessor:} 9... Qe7 10. Nxe6 Qxe6 11. Qg4 Qg6 12. Bd2 O-O-O 13. Bc3 f6 14. a4 a6 15. Nd2 Qxg4 16. hxg4 {0-1 (71) Sevian,S (2556)-Radjabov,T (2738) Baku 2015}) 10. axb3 {[%emt 0:00:06]} f6 {[%emt 0:00:15]} 11. Nf3 {[%emt 0:02:14][%cal Bg5f3,Bf3d2,Bd2c4][%mdl 32]} ({Much weaker is} 11. Ne6 Qe7 12. Qg4 g6 $15) 11... Nc5 {[%emt 0:00:15]} 12. Nd2 {[%emt 0:06:16]} Ne6 {[%emt 0:01:09]} 13. Nc4 {[%emt 0:00:56]} Qd7 {[%emt 0:01:54]} 14. h4 {[%emt 0:23:42][%cal Bh3h4,Bh4h5][%mdl 32]} a6 {[%emt 0:08:56]} 15. h5 {[%emt 0:03:04]} O-O-O {[%emt 0:02:10]} 16. Nxb6+ {[%emt 0:02:33]} cxb6 {[%emt 0:00:05]} 17. Be3 {[%emt 0:00:34]} c5 {[%emt 0:02:15]} 18. Qg4 {[%emt 0:04:30]} Kb8 {[%emt 0:05:10]} 19. g3 {[%emt 0:06:47]} g6 {[%emt 0:17:40]} 20. O-O-O {[%emt 0:05:41]} Qf7 {[%emt 0:00:25]} 21. f4 {[%emt 0:10:51]} exf4 {[%emt 0:09:43]} 22. Bxf4+ {[%emt 0:02:39]} ({White should play} 22. gxf4 $14 f5 23. Qg3) 22... Ka7 $11 {[%emt 0:00:07]} 23. Rdf1 {[%emt 0:00:37][%cal Of4e5] Threatening Be5!} f5 {[%emt 0:02:53]} 24. Qh3 {[%emt 0:11:26]} Qf6 {[%emt 0:05:37]} 25. Kb1 {[%emt 0:03:00]} Rhf8 {[%emt 0:06:18]} 26. Rf2 {[%emt 0:06:30]} Qe7 {[%emt 0:16:14]} 27. Bh6 {[%emt 0:01:25][%csl LRf5,LRf8]} Rf6 {[%emt 0:00:05]} 28. Qh4 {[%emt 0:00:58]} Rg8 $1 {[%emt 0:05:07]} 29. exf5 {[%emt 0:01:20]} g5 {[%emt 0:00:30]} 30. Qe4 {[%emt 0:06:14][%cal Of2e2] [#] Re2! is the strong threat.} Qd6 {[%emt 0:00:56]} 31. fxe6 {[%emt 0:01:44]} Rxf2 {[%emt 0:00:05]} 32. Bxg5 {[%emt 0:02:49]} Rxg5 {[%emt 0:00:44]} 33. e7 {[%emt 0:00:04]} Re5 {[%emt 0:00:45]} 34. e8=Q {[%emt 0:00:09]} Rxe8 {[%emt 0:00:05]} 35. Qxe8 {[%emt 0:00:03]} Qxg3 {[%emt 0:00:07][%cal Of2c2][%mdl 4096] Endgame White should prevent ...Rxc2! KQR-KQR} 36. Qe4 {[%emt 0:02:06]} (36. Re1 {is interesting.} Qg5 37. Qh8 Qd2 38. Qc3) 36... h6 {[%emt 0:01:16]} 37. Qg6 {[%emt 0:02:29]} Qe3 {[%emt 0:01:04]} 38. Qg1 {[%emt 0:00:15]} Qe2 {[%emt 0:02:05]} 39. Qd1 {[%emt 0:01:56]} Qxd1+ {[%emt 0:01:18]} 40. Rxd1 $17 {[%emt 0:00:00] KR-KR} Rh2 {[%emt 0:00:00]} 41. d4 {[%emt 0:15:56]} cxd4 {[%emt 0:00:18]} 42. Rxd4 {[%emt 0:00:08]} Rxh5 {[%emt 0:00:06]} 43. Rd6 {[%emt 0:00:26]} ({White should try} 43. Ka2) 43... b5 {[%emt 0:04:58]} 44. b4 {[%emt 0:00:54]} (44. c4 $17 {is a better defense.}) 44... Rh4 {[%emt 0:02:39]} (44... Rh1+ $19 45. Ka2 h5) 45. b3 {[%emt 0:00:46]} Kb8 {[%emt 0:00:38]} 46. Kb2 {[%emt 0:00:07]} Kc7 {[%emt 0:00:04]} 47. Rg6 {[%emt 0:00:05]} h5 {[%emt 0:02:49]} 48. Rh6 {[%emt 0:00:06]} Kd7 {[%emt 0:02:07]} 49. Ka3 {[%emt 0:01:07] The position is equal.} Rh1 {[%emt 0:01:58] [#] aiming for ...h4.} 50. c4 {[%emt 0:01:27]} bxc4 {[%emt 0:00:45]} 51. bxc4 {[%emt 0:00:03]} h4 {[%emt 0:00:05] Hoping for ...h3.} 52. Rh7+ {[%emt 0:04:05]} Kc6 {[%emt 0:00:05] Weighted Error Value: White=0.09 (flawless) /Black=0.09 (flawless)} 1/2-1/2

[Event "FIDE Candidates Tournament 2022"]
[Site "Madrid"]
[Date "2022.07.04"]
[Round "14.1"]
[White "Rapport, Richard"]
[Black "Radjabov, Teimour"]
[Result "0-1"]
[ECO "C65"]
[WhiteElo "2776"]
[BlackElo "2753"]
[Annotator "TA"]
[PlyCount "66"]
[EventDate "2022.06.17"]
[EventType "tourn"]
[EventCountry "ESP"]
[SourceTitle "playchess.com"]
[Source "ChessBase"]
[SourceQuality "1"]
[TimeControl "40/7200:20/3600:900+30"]

{[%evp 9,66,29,21,10,22,17,19,8,29,27,31,27,45,44,45,45,47,37,39,37,41,31,39,19,28,18,0,0,24,0,61,-177,-53,-69,-52,-58,-64,-75,-87,-139,-141,-244,-238,-216,-214,-209,-224,-224,-212,-208,-201,-430,-445,-445,-443,-439,-431,-470,-460]} 1. e4 {[%emt 0:00:04]} e5 {[%emt 0:00:04]} 2. Nf3 {[%emt 0:00:06]} Nc6 {[%emt 0:00:04]} 3. Bb5 {[%emt 0:00:07]} Nf6 {[%emt 0:00:05]} 4. d3 {[%emt 0:02:30]} Bc5 {[%emt 0:00:06]} 5. Bxc6 {[%emt 0:00:08]} dxc6 {[%emt 0:00:05]} 6. Nbd2 {[%emt 0:00:09] C65: Ruy Lopez: Berlin Defence (3...Nf6), unusual lines and 4 0-0 Bc5.} Be6 {[%emt 0:03:24]} 7. O-O {[%emt 0:00:47]} Bd6 {[%emt 0:01:14]} 8. Nb3 {[%emt 0:00:24] The position is equal.} c5 {[%emt 0:07:01]} 9. Na5 {[%emt 0:04:36]} Qc8 {[%emt 0:05:43]} 10. b3 {[%emt 0:05:11] [#]} O-O $146 {[%emt 0:03:10]} ({Predecessor:} 10... h6 11. Bb2 Bg4 12. Nc4 Qe6 13. Ne3 h5 14. h3 Bxf3 15. Qxf3 g6 16. a3 a5 {½-½ (41) Zivkovic,V (2358)-Matanovic,L (2178) Bosnjaci 2015}) 11. Bb2 {[%emt 0:05:46]} Bg4 {[%emt 0:05:54]} 12. Nc4 {[%emt 0:05:17]} Re8 {[%emt 0:04:06]} 13. a4 {[%emt 0:01:43]} Bh5 {[%emt 0:04:00]} 14. Qe2 {[%emt 0:07:37]} Nd7 {[%emt 0:07:22]} 15. Qe3 {[%emt 0:04:26]} Qd8 {[%emt 0:01:37]} 16. Kh1 {[%emt 0:02:13]} f6 {[%emt 0:05:18]} 17. Rg1 {[%emt 0:07:55][%cal Bf1g1,Bg1g5,Bg5f5][%mdl 32]} Bf7 {[%emt 0:04:33]} 18. g4 {[%emt 0:19:16]} h6 {[%emt 0:08:33] Against g5} 19. g5 {[%emt 0:10:34]} (19. h4 $5 {[%cal Rg4g5]}) 19... fxg5 {[%emt 0:09:12]} (19... hxg5 $11 20. h4 Nf8) 20. Nxg5 $2 {[%emt 0:03:35]} hxg5 {[%emt 0:07:11]} (20... Bxc4 $19 21. bxc4 (21. Nf3 $2 Be6 $17) 21... hxg5 22. Rxg5 Be7) 21. Rxg5 $15 {[%emt 0:00:34]} Qf6 {[%emt 0:06:54] aiming for ...Bxc4.} 22. Rag1 {[%emt 0:02:36][%cal Of2f4] Hoping for f4!} Bf8 $1 {[%emt 0:09:11]} 23. Rf5 {[%emt 0:09:23] [#]} Qh4 {[%emt 0:03:37]} 24. Nd2 {[%emt 0:00:43]} (24. Nxe5 $142 Nxe5 25. Bxe5) 24... Re6 $17 {[%emt 0:02:37]} 25. f4 {[%emt 0:02:11]} (25. Nf3 $17 {is a better defense.} Qh6 26. Nxe5 Qxe3 27. fxe3 Nxe5 28. Bxe5) 25... Rg6 $19 {[%emt 0:02:00]} ({Not} 25... Rh6 26. Nf3 exf4 27. Rxf4 $15) 26. Nf3 {[%emt 0:02:13]} Qh3 {[%emt 0:01:31] White must now prevent ...Rxg1+.} 27. fxe5 {[%emt 0:00:42][%cal Of5f7] [#] Strongly threatening Rxf7!} Rxg1+ $1 {[%emt 0:01:33]} 28. Qxg1 {[%emt 0:00:21]} Bh5 {[%emt 0:00:41]} 29. Ng5 {[%emt 0:04:48]} Qg4 {[%emt 0:00:06]} 30. Qe3 $2 {[%emt 0:02:46]} (30. e6 Nf6 31. Bxf6 Qxg1+ 32. Kxg1 gxf6 33. Rxf6) 30... Be7 {[%emt 0:01:29] Black is clearly winning.} ({Don't go for} 30... Qd1+ $2 31. Qg1 $19) 31. e6 {[%emt 0:00:12] [#]} Rf8 $1 {[%emt 0:02:34]} 32. Nf7 {[%emt 0:05:46]} Bxf7 {[%emt 0:00:35]} ({Wrong is} 32... Qd1+ $2 33. Kg2 Qxc2+ 34. Rf2 $19) 33. exd7 {[%emt 0:00:03]} Be6 {[%emt 0:01:39][%csl LRd7,LRf5] Weighted Error Value: White=0.36/Black=0.13 (very precise)} 0-1